Workbook

Sheet INICIO
B1: ACERCA DE ESTA PLANTILLA
B2: Realiza un seguimiento de tu inversión inicial en un sitio web, sus beneficios y costos con esta herramienta de elaboración del presupuesto para un sitio web.
B3: Escribe la información en las tablas para calcular automáticamente los totales y las métricas de evaluación.
B4: Nota:
B5: Se facilitan instrucciones adicionales en la columna A de la hoja de cálculo HERRAMIENTA DE ELABORACIÓN DEL PRESUPUESTO. Este texto se ocultó a propósito. Para eliminar el texto, seleccione la columna A y, a continuación, ELIMINAR. Para mostrar el texto, seleccione la columna A y, a continuación, cambie el color de fuente.
B6: Para obtener más información sobre las tablas de la hoja de cálculo, presiona las teclas MAYÚS y F10 dentro de una tabla, selecciona la opción TABLA y, a continuación, TEXTO ALTERNATIVO.

Sheet HERRAMIENTA PRESUPUESTARIA
B2: Hardware di Quadrex
B3: HERRAMIENTA DE ELABORACIÓN DEL PRESUPUESTO PARA UN SITIO WEB
B4: 2022-12-01
B6: Datos de la compañía | C6: Tasa
B7: Tasa de retorno necesaria | C7: 10%
B8: Tasa impositiva | C8: 30%
B10: Inversión inicial en el sitio web | C10: Año
B11: Hardware (por ejemplo, servidores) | C11: $25,000.00
B12: Software (por ejemplo, software para crear catálogos de comercio electrónico) | C12: $15,000.00
B13: Desarrollo (por ejemplo, el diseño y el desarrollo del sitio web por terceros) | C13: $150,000.00
B14: Total de inversiones iniciales | C14: =SUBTOTAL(109,InversiónInicial[Año]) -> $190,000.00
B16: Beneficios del sitio web | C16: Año 1 | D16: Año 2 | E16: Año 3
B17: Ventas directas | C17: $15,000.00 | D17: $50,000.00 | E17: $75,000.00
B18: Ventas incrementales resultantes de una eficacia promocional o comercial mejorada | C18: $25,000.00 | D18: $25,000.00 | E18: $25,000.00
B19: Ventas incrementales resultantes del aumento de la participación de partners | C19: $25,000.00 | D19: $25,000.00 | E19: $25,000.00
B20: Costos de desplazamiento reducidos | C20: $25,000.00 | D20: $25,000.00 | E20: $25,000.00
B21: Costos de atención al cliente reducidos | C21: $50,000.00 | D21: $50,000.00 | E21: $50,000.00
B22: Beneficios totales | C22: =SUBTOTAL(109,Beneficios[Año 1]) -> $140,000.00 | D22: =SUBTOTAL(109,Beneficios[Año 2]) -> $175,000.00 | E22: =SUBTOTAL(109,Beneficios[Año 3]) -> $200,000.00
B24: Costos (excepto las inversiones de capital inicial) | C24: AÑO 1 | D24: AÑO 2 | E24: AÑO 3
B25: Costo de ventas | C25: $7,500.00 | D25: $25,000.00 | E25: $37,500.00
B26: Mantenimiento | C26: $15,000.00 | D26: $15,000.00 | E26: $15,000.00
B27: Administración de proyectos, asistencia al cliente | C27: $35,000.00 | D27: $35,000.00 | E27: $35,000.00
B28: Publicidad en línea, registro en motores de búsqueda | C28: $10,000.00 | D28: $10,000.00 | E28: $10,000.00
B29: Amortización de los gastos de inversión (el cálculo usa un período de tres años) | C29: =InversiónInicial[[#Totals],[Año]]/3 -> $63,333.33 | D29: =InversiónInicial[[#Totals],[Año]]/3 -> $63,333.33 | E29: =InversiónInicial[[#Totals],[Año]]/3 -> $63,333.33
B30: Costos totales | C30: =SUBTOTAL(109,Costos[AÑO 1]) -> $130,833.33 | D30: =SUBTOTAL(109,Costos[AÑO 2]) -> $148,333.33 | E30: =SUBTOTAL(109,Costos[AÑO 3]) -> $160,833.33
B32: Totales | D32: Año 1 | E32: Año 2 | F32: Año 3
B33: Beneficios netos (costos) | D33: =Beneficios[[#Totals],[Año 1]]-Costos[[#Totals],[AÑO 1]] -> $9,166.67 | E33: =Beneficios[[#Totals],[Año 2]]-Costos[[#Totals],[AÑO 2]] -> $26,666.67 | F33: =Beneficios[[#Totals],[Año 3]]-Costos[[#Totals],[AÑO 3]] -> $39,166.67
B34: Impuestos | D34: =D33*TasaDeImpuestos -> $2,750.00 | E34: =E33*TasaDeImpuestos -> $8,000.00 | F34: =F33*TasaDeImpuestos -> $11,750.00
B35: Valor neto | D35: =D33-D34 -> $6,416.67 | E35: $18,666.67 | F35: $27,416.67
B36: Amortización agregada | D36: =C29 -> $63,333.33 | E36: =D29 -> $63,333.33 | F36: =E29 -> $63,333.33
B37: Flujo de efectivo | C37: =-InversiónInicial[[#Totals],[Año]] -> -$190,000.00 | D37: =D35+D36 -> $69,750.00 | E37: $82,000.00 | F37: $90,750.00
B38: Flujo de efectivo acumulado | C38: =C37 -> -$190,000.00 | D38: =C38+D37 -> -$120,250.00 | E38: -$38,250.00 | F38: $52,500.00
B40: Métricas de evaluación | C40: Valores
B41: Valor actual neto (VAN) | C41: =C37+(NPV(TasaRetornoNecesaria,D37:F37)) -> $9,359.50
B42: Tasa interna de retorno (TIR) | C42: =IRR(C37:F37) -> 12.66%
B43: Período de amortización (en años) | C43: =IF(F38<=0,"Supera los 3 años",IF(E38<=0,(F37-F38)/F37+2,IF(D38<=0,(E37-E38)/E37+1,IF(C38<=0,(D37-D38)/D37,"NA")))) -> 2.42
